[Event "Titled Tuesday Blitz June 6 Late 2023"]
[White "Arnold, Ken"]
[Black "Eidelman, Gabriel"]
[WhiteFideId "2056836"]
[BlackFideId "30910544"]
[WhiteElo "2440"]
[BlackElo "2447"]
[Result "1-0"]
[Round "11"]
[TimeControl "180+2"]
[Date "2023.06.07"]
[WhiteClock "0:00:57"]
[BlackClock "0:00:01"]
[Board "72"]

1. d4 {[%clk 0:03:00]}  Nf6 {[%clk 0:02:57]} 2. c4 {[%clk 0:03:00]}  g6 {[%clk 0:02:56]} 3. Nf3 {[%clk 0:03:01]}  Bg7 {[%clk 0:02:56]} 4. Nc3 {[%clk 0:03:00]}  d5 {[%clk 0:02:54]} 5. Bg5 {[%clk 0:02:59]}  c6 {[%clk 0:02:51]} 6. Bxf6 {[%clk 0:02:58]}  Bxf6 {[%clk 0:02:51]} 7. e4 {[%clk 0:02:57]}  dxe4 {[%clk 0:02:48]} 8. Nxe4 {[%clk 0:02:57]}  Bg7 {[%clk 0:02:49]} 9. Be2 {[%clk 0:02:56]}  O-O {[%clk 0:02:48]} 10. Qd2 {[%clk 0:02:55]}  Nd7 {[%clk 0:02:45]} 11. O-O {[%clk 0:02:54]}  Nf6 {[%clk 0:02:44]} 12. Nxf6+ {[%clk 0:02:54]}  Bxf6 {[%clk 0:02:43]} 13. Rfd1 {[%clk 0:02:53]}  Bf5 {[%clk 0:02:34]} 14. Qe3 {[%clk 0:02:51]}  Qc7 {[%clk 0:02:22]} 15. Rd2 {[%clk 0:02:48]}  Rad8 {[%clk 0:02:21]} 16. Rad1 {[%clk 0:02:47]}  h5 {[%clk 0:01:53]} 17. h3 {[%clk 0:02:45]}  a5 {[%clk 0:01:33]} 18. b3 {[%clk 0:02:45]}  b6 {[%clk 0:01:28]} 19. Ne5 {[%clk 0:02:44]}  c5 {[%clk 0:01:24]} 20. f4 {[%clk 0:02:39]}  cxd4 {[%clk 0:01:20]} 21. Rxd4 {[%clk 0:02:38]}  Qc5 {[%clk 0:01:14]} 22. Kf2 {[%clk 0:02:24]}  Rxd4 {[%clk 0:01:09]} 23. Qxd4 {[%clk 0:02:22]}  Qa3 {[%clk 0:00:58]} 24. Rd2 {[%clk 0:02:18]}  Qc1 {[%clk 0:00:47]} 25. Qe3 {[%clk 0:02:08]}  a4 {[%clk 0:00:37]} 26. Nf3 {[%clk 0:01:40]}  axb3 {[%clk 0:00:34]} 27. axb3 {[%clk 0:01:40]}  b5 {[%clk 0:00:17]} 28. Rd5 {[%clk 0:01:39]}  Qxe3+ {[%clk 0:00:13]} 29. Kxe3 {[%clk 0:01:38]}  bxc4 {[%clk 0:00:11]} 30. Bxc4 {[%clk 0:01:38]}  Be6 {[%clk 0:00:10]} 31. Rd2 {[%clk 0:01:34]}  Bxc4 {[%clk 0:00:09]} 32. bxc4 {[%clk 0:01:34]}  Rc8 {[%clk 0:00:08]} 33. Rc2 {[%clk 0:01:35]}  e6 {[%clk 0:00:08]} 34. g4 {[%clk 0:01:34]}  hxg4 {[%clk 0:00:06]} 35. hxg4 {[%clk 0:01:34]}  Kf8 {[%clk 0:00:07]} 36. Nd4 {[%clk 0:01:33]}  Bxd4+ {[%clk 0:00:06]} 37. Kxd4 {[%clk 0:01:33]}  Ke7 {[%clk 0:00:06]} 38. Rb2 {[%clk 0:01:31]}  g5 {[%clk 0:00:04]} 39. Rb7+ {[%clk 0:01:30]}  Kf6 {[%clk 0:00:02]} 40. fxg5+ {[%clk 0:01:30]}  Kxg5 {[%clk 0:00:02]} 41. Rxf7 {[%clk 0:01:30]}  Kxg4 {[%clk 0:00:03]} 42. c5 {[%clk 0:01:25]}  e5+ {[%clk 0:00:02]} 43. Kd5 {[%clk 0:01:25]}  e4 {[%clk 0:00:02]} 44. Re7 {[%clk 0:01:22]}  Kf3 {[%clk 0:00:01]} 45. Kd4 {[%clk 0:01:01]}  e3 {[%clk 0:00:01]} 46. Rxe3+ {[%clk 0:01:00]}  Kf4 {[%clk 0:00:01]} 47. Re7 {[%clk 0:00:58]}  Kf5 {[%clk 0:00:01]} 48. Kd5 {[%clk 0:00:57]} 1-0


[Site "https://www.chess.com"]

[Event "Titled Tuesday Blitz June 6 Late 2023"]
[White "Pavlidou, Ekaterini"]
[Black "Belov, Alexei"]
[WhiteFideId "4213262"]
[BlackFideId "4128206"]
[WhiteElo "2126"]
[BlackElo "2596"]
[Result "0-1"]
[Round "11"]
[TimeControl "180+2"]
[Date "2023.06.07"]
[WhiteClock "0:00:13"]
[BlackClock "0:01:11"]
[Board "75"]

1. d4 {[%clk 0:02:56]}  e6 {[%clk 0:03:00]} 2. c4 {[%clk 0:02:55]}  d5 {[%clk 0:02:59]} 3. cxd5 {[%clk 0:02:55]}  exd5 {[%clk 0:02:59]} 4. Nc3 {[%clk 0:02:55]}  c6 {[%clk 0:02:59]} 5. Nf3 {[%clk 0:02:53]}  Bf5 {[%clk 0:02:59]} 6. h3 {[%clk 0:02:49]}  Nf6 {[%clk 0:02:59]} 7. Bg5 {[%clk 0:02:48]}  Be7 {[%clk 0:02:58]} 8. e3 {[%clk 0:02:48]}  Nbd7 {[%clk 0:02:57]} 9. Nh4 {[%clk 0:02:47]}  Be6 {[%clk 0:02:56]} 10. g4 {[%clk 0:02:41]}  Ne4 {[%clk 0:02:50]} 11. Bxe7 {[%clk 0:02:37]}  Qxe7 {[%clk 0:02:50]} 12. Nxe4 {[%clk 0:02:36]}  dxe4 {[%clk 0:02:49]} 13. Nf5 {[%clk 0:02:33]}  Bxf5 {[%clk 0:02:46]} 14. gxf5 {[%clk 0:02:33]}  Nf6 {[%clk 0:02:41]} 15. Qb3 {[%clk 0:02:31]}  O-O {[%clk 0:02:33]} 16. Be2 {[%clk 0:02:25]}  Qd7 {[%clk 0:02:30]} 17. Bg4 {[%clk 0:02:22]}  h5 {[%clk 0:02:29]} 18. Be2 {[%clk 0:02:20]}  Qxf5 {[%clk 0:02:29]} 19. Qxb7 {[%clk 0:02:12]}  Rab8 {[%clk 0:02:26]} 20. Qxa7 {[%clk 0:02:11]}  Rxb2 {[%clk 0:02:24]} 21. Rg1 {[%clk 0:01:41]}  Rfb8 {[%clk 0:02:19]} 22. Qa6 {[%clk 0:01:31]}  Rb1+ {[%clk 0:02:07]} 23. Rxb1 {[%clk 0:01:29]}  Rxb1+ {[%clk 0:02:05]} 24. Bd1 {[%clk 0:01:30]}  Qf3 {[%clk 0:01:49]} 25. Qe2 {[%clk 0:01:29]}  Qxh3 {[%clk 0:01:41]} 26. Qc2 {[%clk 0:01:17]}  Rb6 {[%clk 0:01:34]} 27. Qc5 {[%clk 0:01:11]}  Rb2 {[%clk 0:01:33]} 28. Qc3 {[%clk 0:00:54]}  Rxa2 {[%clk 0:01:30]} 29. d5 {[%clk 0:00:54]}  Qf5 {[%clk 0:01:24]} 30. Bc2 {[%clk 0:00:30]}  cxd5 {[%clk 0:01:16]} 31. Kf1 {[%clk 0:00:15]}  Ng4 {[%clk 0:01:13]} 32. Rg2 {[%clk 0:00:13]}  Rxc2 {[%clk 0:01:11]} 0-1


[Site "https://www.chess.com"]

[Event "Titled Tuesday Blitz June 6 Late 2023"]
[White "Pace, Christopher"]
[Black "Machidon, Cristi"]
[WhiteFideId "2610167"]
[BlackFideId "13904590"]
[WhiteElo "2329"]
[BlackElo "2355"]
[Result "0-1"]
[Round "11"]
[TimeControl "180+2"]
[Date "2023.06.07"]
[WhiteClock "0:00:11"]
[BlackClock "0:01:01"]
[Board "76"]

1. e4 {[%clk 0:02:57]}  d5 {[%clk 0:02:59]} 2. exd5 {[%clk 0:02:54]}  Qxd5 {[%clk 0:03:00]} 3. d4 {[%clk 0:02:53]}  Nc6 {[%clk 0:02:58]} 4. Nf3 {[%clk 0:02:52]}  e5 {[%clk 0:02:52]} 5. Nc3 {[%clk 0:02:43]}  Bb4 {[%clk 0:02:51]} 6. Bd2 {[%clk 0:02:42]}  Bxc3 {[%clk 0:02:51]} 7. Bxc3 {[%clk 0:02:43]}  e4 {[%clk 0:02:45]} 8. Ne5 {[%clk 0:02:43]}  Nxe5 {[%clk 0:02:41]} 9. dxe5 {[%clk 0:02:43]}  Be6 {[%clk 0:02:37]} 10. Qh5 {[%clk 0:02:22]}  O-O-O {[%clk 0:02:26]} 11. Be2 {[%clk 0:02:17]}  Ne7 {[%clk 0:02:09]} 12. O-O {[%clk 0:02:12]}  g6 {[%clk 0:02:09]} 13. Qg5 {[%clk 0:02:03]}  Nf5 {[%clk 0:02:00]} 14. Rfd1 {[%clk 0:01:54]}  Qc5 {[%clk 0:01:53]} 15. Qf6 {[%clk 0:01:07]}  h5 {[%clk 0:01:40]} 16. Qg5 {[%clk 0:00:36]}  e3 {[%clk 0:01:34]} 17. f3 {[%clk 0:00:29]}  h4 {[%clk 0:01:18]} 18. Kh1 {[%clk 0:00:19]}  Rd2 {[%clk 0:01:04]} 19. Bxd2 {[%clk 0:00:11]}  Ng3+ {[%clk 0:01:01]} 0-1


[Site "https://www.chess.com"]

[Event "Titled Tuesday Blitz June 6 Late 2023"]
[White "Swicarz, Maciej"]
[Black "Rodriguez Santiago, Jaime"]
[WhiteFideId "1113585"]
[BlackFideId "3100898"]
[WhiteElo "2181"]
[BlackElo "2025"]
[Result "1-0"]
[Round "11"]
[TimeControl "180+2"]
[Date "2023.06.07"]
[WhiteClock "0:00:04"]
[BlackClock "0:00:12"]
[Board "78"]

1. e4 {[%clk 0:03:00]}  c6 {[%clk 0:02:59]} 2. Nc3 {[%clk 0:02:59]}  d5 {[%clk 0:02:59]} 3. Qe2 {[%clk 0:03:00]}  dxe4 {[%clk 0:02:59]} 4. Nxe4 {[%clk 0:02:59]}  Bf5 {[%clk 0:02:51]} 5. g3 {[%clk 0:02:57]}  e6 {[%clk 0:02:48]} 6. Bg2 {[%clk 0:02:56]}  Be7 {[%clk 0:02:44]} 7. c3 {[%clk 0:02:54]}  Nd7 {[%clk 0:02:43]} 8. d4 {[%clk 0:02:53]}  Ngf6 {[%clk 0:02:43]} 9. Nxf6+ {[%clk 0:02:52]}  Nxf6 {[%clk 0:02:44]} 10. Nf3 {[%clk 0:02:52]}  O-O {[%clk 0:02:43]} 11. Ne5 {[%clk 0:02:52]}  Nd7 {[%clk 0:02:33]} 12. Nc4 {[%clk 0:02:47]}  Rc8 {[%clk 0:02:21]} 13. O-O {[%clk 0:02:45]}  b6 {[%clk 0:02:16]} 14. Bf4 {[%clk 0:02:40]}  c5 {[%clk 0:02:10]} 15. Bb7 {[%clk 0:02:38]}  cxd4 {[%clk 0:02:06]} 16. Bxc8 {[%clk 0:02:35]}  d3 {[%clk 0:02:06]} 17. Qf3 {[%clk 0:02:24]}  Qxc8 {[%clk 0:02:04]} 18. Nd6 {[%clk 0:02:23]}  Bxd6 {[%clk 0:02:03]} 19. Bxd6 {[%clk 0:02:24]}  Rd8 {[%clk 0:02:01]} 20. Rfd1 {[%clk 0:02:24]}  Nf6 {[%clk 0:01:59]} 21. Be7 {[%clk 0:02:24]}  Rd7 {[%clk 0:01:55]} 22. Bxf6 {[%clk 0:02:23]}  gxf6 {[%clk 0:01:55]} 23. g4 {[%clk 0:02:18]}  Bg6 {[%clk 0:01:53]} 24. Qxf6 {[%clk 0:02:18]}  Qc4 {[%clk 0:01:48]} 25. Qf3 {[%clk 0:02:03]}  d2 {[%clk 0:01:44]} 26. h3 {[%clk 0:01:54]}  Rd3 {[%clk 0:01:44]} 27. Qf6 {[%clk 0:01:07]}  h6 {[%clk 0:01:15]} 28. f3 {[%clk 0:00:58]}  Qc5+ {[%clk 0:01:06]} 29. Kg2 {[%clk 0:00:57]}  Qe3 {[%clk 0:01:05]} 30. h4 {[%clk 0:00:45]}  Qe2+ {[%clk 0:01:03]} 31. Kg3 {[%clk 0:00:44]}  Be4 {[%clk 0:00:55]} 32. Rf1 {[%clk 0:00:42]}  Bd5 {[%clk 0:00:35]} 33. Rad1 {[%clk 0:00:30]}  a5 {[%clk 0:00:30]} 34. g5 {[%clk 0:00:25]}  h5 {[%clk 0:00:13]} 35. g6 {[%clk 0:00:23]}  fxg6 {[%clk 0:00:14]} 36. Qxg6+ {[%clk 0:00:23]}  Kf8 {[%clk 0:00:14]} 37. Qf6+ {[%clk 0:00:23]}  Ke8 {[%clk 0:00:15]} 38. b3 {[%clk 0:00:18]}  Kd7 {[%clk 0:00:15]} 39. c4 {[%clk 0:00:16]}  Bb7 {[%clk 0:00:14]} 40. Qg7+ {[%clk 0:00:15]}  Kc8 {[%clk 0:00:14]} 41. Qf8+ {[%clk 0:00:14]}  Kc7 {[%clk 0:00:15]} 42. Qf7+ {[%clk 0:00:14]}  Kb8 {[%clk 0:00:15]} 43. Qf4+ {[%clk 0:00:13]}  Ka7 {[%clk 0:00:15]} 44. c5 {[%clk 0:00:11]}  b5 {[%clk 0:00:15]} 45. Qf7 {[%clk 0:00:07]}  Rd5 {[%clk 0:00:15]} 46. c6 {[%clk 0:00:06]}  Qe5+ {[%clk 0:00:14]} 47. Kg2 {[%clk 0:00:05]}  Qe2+ {[%clk 0:00:14]} 48. Rf2 {[%clk 0:00:05]}  Qxf2+ {[%clk 0:00:07]} 49. Kxf2 {[%clk 0:00:04]}  Kb6 {[%clk 0:00:06]} 50. Qxb7+ {[%clk 0:00:04]}  Kc5 {[%clk 0:00:07]} 51. c7 {[%clk 0:00:05]}  Kd4 {[%clk 0:00:08]} 52. c8=Q {[%clk 0:00:04]}  Kd3 {[%clk 0:00:09]} 53. Qcc7 {[%clk 0:00:03]}  e5 {[%clk 0:00:09]} 54. Qh7+ {[%clk 0:00:02]}  e4 {[%clk 0:00:10]} 55. Qbc7 {[%clk 0:00:02]}  Rd4 {[%clk 0:00:10]} 56. Qxe4+ {[%clk 0:00:02]}  Rxe4 {[%clk 0:00:10]} 57. fxe4 {[%clk 0:00:03]}  Kd4 {[%clk 0:00:10]} 58. Rxd2+ {[%clk 0:00:03]}  Kxe4 {[%clk 0:00:10]} 59. Qe7+ {[%clk 0:00:04]}  Kf5 {[%clk 0:00:11]} 60. Rd5+ {[%clk 0:00:03]}  Kg4 {[%clk 0:00:12]} 61. Qg5+ {[%clk 0:00:03]}  Kh3 {[%clk 0:00:12]} 62. Qg3# {[%clk 0:00:04]} 1-0


[Site "https://www.chess.com"]

[Event "Titled Tuesday Blitz June 6 Late 2023"]
[White "Rian, Kapriaga"]
[Black "KorolDimitriy75"]
[WhiteFideId "7103263"]
[WhiteElo "2317"]
[BlackElo "2437"]
[Result "1-0"]
[Round "11"]
[TimeControl "180+2"]
[Date "2023.06.07"]
[WhiteClock "0:01:04"]
[BlackClock "0:00:01"]
[Board "79"]

1. d4 {[%clk 0:02:58]}  Nf6 {[%clk 0:02:59]} 2. c4 {[%clk 0:02:58]}  c5 {[%clk 0:02:59]} 3. d5 {[%clk 0:02:57]}  b5 {[%clk 0:02:59]} 4. Qc2 {[%clk 0:02:57]}  bxc4 {[%clk 0:02:59]} 5. e4 {[%clk 0:02:57]}  d6 {[%clk 0:02:58]} 6. Bxc4 {[%clk 0:02:56]}  g6 {[%clk 0:02:59]} 7. Nf3 {[%clk 0:02:56]}  Bg7 {[%clk 0:02:59]} 8. O-O {[%clk 0:02:55]}  O-O {[%clk 0:02:59]} 9. Nc3 {[%clk 0:02:55]}  Nbd7 {[%clk 0:02:57]} 10. h3 {[%clk 0:02:54]}  Nb6 {[%clk 0:02:57]} 11. Be2 {[%clk 0:02:54]}  e6 {[%clk 0:02:57]} 12. Bg5 {[%clk 0:02:52]}  exd5 {[%clk 0:02:52]} 13. Nxd5 {[%clk 0:02:46]}  Nbxd5 {[%clk 0:02:46]} 14. exd5 {[%clk 0:02:46]}  h6 {[%clk 0:02:46]} 15. Bh4 {[%clk 0:02:32]}  g5 {[%clk 0:02:32]} 16. Bg3 {[%clk 0:02:31]}  Nxd5 {[%clk 0:02:19]} 17. Rfd1 {[%clk 0:02:31]}  Nb4 {[%clk 0:02:18]} 18. Qd2 {[%clk 0:02:25]}  d5 {[%clk 0:01:05]} 19. a3 {[%clk 0:02:23]}  Nc6 {[%clk 0:01:04]} 20. Qxd5 {[%clk 0:02:12]}  Qb6 {[%clk 0:00:55]} 21. Bd6 {[%clk 0:02:03]}  Rd8 {[%clk 0:00:44]} 22. Qxc5 {[%clk 0:01:58]}  Bxb2 {[%clk 0:00:33]} 23. Rab1 {[%clk 0:01:53]}  Qxc5 {[%clk 0:00:31]} 24. Bxc5 {[%clk 0:01:51]}  Rxd1+ {[%clk 0:00:30]} 25. Bxd1 {[%clk 0:01:49]}  Bf6 {[%clk 0:00:22]} 26. Ba4 {[%clk 0:01:48]}  Bd7 {[%clk 0:00:11]} 27. Rb7 {[%clk 0:01:46]}  Be8 {[%clk 0:00:10]} 28. Rc7 {[%clk 0:01:41]}  Ne5 {[%clk 0:00:07]} 29. Bxe8 {[%clk 0:01:37]}  Rxe8 {[%clk 0:00:06]} 30. Rxa7 {[%clk 0:01:29]}  Nxf3+ {[%clk 0:00:05]} 31. gxf3 {[%clk 0:01:29]}  Re1+ {[%clk 0:00:05]} 32. Kg2 {[%clk 0:01:28]}  Ra1 {[%clk 0:00:04]} 33. Ra6 {[%clk 0:01:25]}  Bg7 {[%clk 0:00:03]} 34. Ra8+ {[%clk 0:01:21]}  Kh7 {[%clk 0:00:02]} 35. Ra7 {[%clk 0:01:21]}  Kg6 {[%clk 0:00:03]} 36. Ra6+ {[%clk 0:01:20]}  f6 {[%clk 0:00:03]} 37. Ra7 {[%clk 0:01:15]}  Ra2 {[%clk 0:00:02]} 38. Ra6 {[%clk 0:01:10]}  Kh5 {[%clk 0:00:02]} 39. Re6 {[%clk 0:01:07]}  f5 {[%clk 0:00:01]} 40. Kg3 {[%clk 0:01:04]} 1-0


[Site "https://www.chess.com"]

[Event "Titled Tuesday Blitz June 6 Late 2023"]
[White "Harish, Neeraj"]
[Black "Mazurkiewicz, Michal"]
[WhiteFideId "30958130"]
[BlackFideId "1124943"]
[WhiteElo "1879"]
[BlackElo "2063"]
[Result "0-1"]
[Round "11"]
[TimeControl "180+2"]
[Date "2023.06.07"]
[WhiteClock "0:00:21"]
[BlackClock "0:01:50"]
[Board "83"]

1. e4 {[%clk 0:03:00]}  d6 {[%clk 0:02:58]} 2. d4 {[%clk 0:03:00]}  Nf6 {[%clk 0:02:58]} 3. Nc3 {[%clk 0:03:01]}  c6 {[%clk 0:02:58]} 4. f4 {[%clk 0:03:00]}  Qb6 {[%clk 0:02:58]} 5. Nf3 {[%clk 0:02:57]}  Bg4 {[%clk 0:02:58]} 6. Be2 {[%clk 0:02:47]}  e6 {[%clk 0:02:57]} 7. O-O {[%clk 0:02:45]}  d5 {[%clk 0:02:57]} 8. e5 {[%clk 0:02:45]}  Nfd7 {[%clk 0:02:57]} 9. Be3 {[%clk 0:02:42]}  g6 {[%clk 0:02:54]} 10. Qd2 {[%clk 0:02:39]}  c5 {[%clk 0:02:49]} 11. Na4 {[%clk 0:01:33]}  Qc7 {[%clk 0:02:48]} 12. dxc5 {[%clk 0:01:31]}  Bxf3 {[%clk 0:02:41]} 13. Bxf3 {[%clk 0:01:30]}  Nxc5 {[%clk 0:02:42]} 14. Nxc5 {[%clk 0:01:23]}  Bxc5 {[%clk 0:02:42]} 15. c4 {[%clk 0:01:23]}  dxc4 {[%clk 0:02:36]} 16. Bxc5 {[%clk 0:01:13]}  Qxc5+ {[%clk 0:02:37]} 17. Kh1 {[%clk 0:01:13]}  Nc6 {[%clk 0:02:35]} 18. Rfd1 {[%clk 0:01:05]}  O-O {[%clk 0:02:30]} 19. Qd6 {[%clk 0:01:00]}  Qe3 {[%clk 0:02:16]} 20. Bxc6 {[%clk 0:00:34]}  bxc6 {[%clk 0:02:17]} 21. Qd4 {[%clk 0:00:32]}  Qxd4 {[%clk 0:02:10]} 22. Rxd4 {[%clk 0:00:33]}  Rab8 {[%clk 0:02:04]} 23. Rd2 {[%clk 0:00:28]}  Rfd8 {[%clk 0:01:56]} 24. Rad1 {[%clk 0:00:25]}  Rxd2 {[%clk 0:01:56]} 25. Rxd2 {[%clk 0:00:26]}  c3 {[%clk 0:01:56]} 26. Rd1 {[%clk 0:00:20]}  cxb2 {[%clk 0:01:48]} 27. Rb1 {[%clk 0:00:20]}  c5 {[%clk 0:01:49]} 28. Kg1 {[%clk 0:00:20]}  c4 {[%clk 0:01:49]} 29. Kf1 {[%clk 0:00:21]}  c3 {[%clk 0:01:50]} 0-1


[Site "https://www.chess.com"]

[Event "Titled Tuesday Blitz June 6 Late 2023"]
[White "MrAnnihilation"]
[Black "campochess"]
[WhiteElo "2386"]
[BlackElo "2174"]
[Result "1-0"]
[Round "11"]
[TimeControl "180+2"]
[Date "2023.06.07"]
[WhiteClock "0:00:19"]
[BlackClock "0:00:01"]
[Board "86"]

1. e4 {[%clk 0:02:53]}  c5 {[%clk 0:02:59]} 2. Nf3 {[%clk 0:02:53]}  Nc6 {[%clk 0:02:59]} 3. Bb5 {[%clk 0:02:53]}  e6 {[%clk 0:02:59]} 4. Bxc6 {[%clk 0:02:54]}  bxc6 {[%clk 0:02:58]} 5. d3 {[%clk 0:02:51]}  d5 {[%clk 0:02:58]} 6. O-O {[%clk 0:02:49]}  Nf6 {[%clk 0:02:56]} 7. e5 {[%clk 0:02:48]}  Nd7 {[%clk 0:02:56]} 8. c4 {[%clk 0:02:49]}  Be7 {[%clk 0:02:55]} 9. Nc3 {[%clk 0:02:49]}  O-O {[%clk 0:02:53]} 10. b3 {[%clk 0:02:45]}  f6 {[%clk 0:02:52]} 11. Bf4 {[%clk 0:02:21]}  fxe5 {[%clk 0:02:51]} 12. Bg3 {[%clk 0:02:21]}  Bf6 {[%clk 0:02:48]} 13. Rc1 {[%clk 0:02:16]}  Qa5 {[%clk 0:02:46]} 14. Qe1 {[%clk 0:02:08]}  e4 {[%clk 0:02:33]} 15. Nxe4 {[%clk 0:02:01]}  Qxe1 {[%clk 0:02:29]} 16. Nxf6+ {[%clk 0:02:01]}  Rxf6 {[%clk 0:02:28]} 17. Rfxe1 {[%clk 0:02:02]}  Nf8 {[%clk 0:02:24]} 18. Bd6 {[%clk 0:01:57]}  a5 {[%clk 0:02:14]} 19. Bxc5 {[%clk 0:01:55]}  a4 {[%clk 0:02:14]} 20. b4 {[%clk 0:01:53]}  a3 {[%clk 0:02:14]} 21. Ne5 {[%clk 0:01:46]}  Ra6 {[%clk 0:02:05]} 22. Rc3 {[%clk 0:01:44]}  Ng6 {[%clk 0:02:05]} 23. Nxg6 {[%clk 0:01:24]}  Rxg6 {[%clk 0:02:04]} 24. b5 {[%clk 0:01:16]}  cxb5 {[%clk 0:02:01]} 25. cxb5 {[%clk 0:01:16]}  Ra5 {[%clk 0:02:02]} 26. Bb4 {[%clk 0:00:49]}  Ra8 {[%clk 0:02:00]} 27. Rxa3 {[%clk 0:00:29]}  Rb8 {[%clk 0:01:59]} 28. Rc1 {[%clk 0:00:28]}  Bd7 {[%clk 0:01:58]} 29. Ra7 {[%clk 0:00:22]}  Bxb5 {[%clk 0:01:57]} 30. Bd6 {[%clk 0:00:22]}  Re8 {[%clk 0:01:50]} 31. d4 {[%clk 0:00:22]}  Bc4 {[%clk 0:01:46]} 32. a4 {[%clk 0:00:21]}  Rg4 {[%clk 0:01:40]} 33. f4 {[%clk 0:00:20]}  g5 {[%clk 0:01:37]} 34. g3 {[%clk 0:00:20]}  gxf4 {[%clk 0:01:37]} 35. Bxf4 {[%clk 0:00:20]}  Rg7 {[%clk 0:01:32]} 36. Rxg7+ {[%clk 0:00:18]}  Kxg7 {[%clk 0:01:32]} 37. a5 {[%clk 0:00:19]}  Ra8 {[%clk 0:01:32]} 38. Ra1 {[%clk 0:00:17]}  Kg6 {[%clk 0:01:30]} 39. Kf2 {[%clk 0:00:17]}  Kf5 {[%clk 0:01:30]} 40. Ke3 {[%clk 0:00:17]}  Ba6 {[%clk 0:01:26]} 41. Rb1 {[%clk 0:00:17]}  Bc4 {[%clk 0:01:22]} 42. Bc7 {[%clk 0:00:16]}  Rc8 {[%clk 0:01:20]} 43. Bb6 {[%clk 0:00:16]}  Ba6 {[%clk 0:01:19]} 44. h3 {[%clk 0:00:16]}  Rc3+ {[%clk 0:01:19]} 45. Kd2 {[%clk 0:00:16]}  Rxg3 {[%clk 0:01:18]} 46. Kc2 {[%clk 0:00:16]}  Ke4 {[%clk 0:01:18]} 47. Re1+ {[%clk 0:00:16]}  Re3 {[%clk 0:01:11]} 48. Rg1 {[%clk 0:00:10]}  Rxh3 {[%clk 0:01:10]} 49. Rg4+ {[%clk 0:00:10]}  Kf3 {[%clk 0:01:08]} 50. Rg7 {[%clk 0:00:11]}  Ke4 {[%clk 0:01:02]} 51. Ra7 {[%clk 0:00:09]}  Bd3+ {[%clk 0:01:01]} 52. Kc3 {[%clk 0:00:08]}  Bc4+ {[%clk 0:01:00]} 53. Kb4 {[%clk 0:00:09]}  Rb3+ {[%clk 0:00:59]} 54. Kc5 {[%clk 0:00:10]}  Rb5+ {[%clk 0:00:58]} 55. Kc6 {[%clk 0:00:11]}  Rb1 {[%clk 0:00:57]} 56. a6 {[%clk 0:00:11]}  Ra1 {[%clk 0:00:52]} 57. Kb7 {[%clk 0:00:12]}  h5 {[%clk 0:00:50]} 58. Ra8 {[%clk 0:00:12]}  h4 {[%clk 0:00:49]} 59. a7 {[%clk 0:00:13]}  h3 {[%clk 0:00:46]} 60. Rh8 {[%clk 0:00:14]}  Rxa7+ {[%clk 0:00:43]} 61. Bxa7 {[%clk 0:00:14]}  Bf1 {[%clk 0:00:43]} 62. Kc6 {[%clk 0:00:13]}  Kf3 {[%clk 0:00:37]} 63. Bb8 {[%clk 0:00:13]}  Ke3 {[%clk 0:00:28]} 64. Kc5 {[%clk 0:00:13]}  Bg2 {[%clk 0:00:24]} 65. Be5 {[%clk 0:00:08]}  Ke4 {[%clk 0:00:23]} 66. Kd6 {[%clk 0:00:08]}  Kf5 {[%clk 0:00:23]} 67. Rf8+ {[%clk 0:00:07]}  Ke4 {[%clk 0:00:18]} 68. Kxe6 {[%clk 0:00:07]}  h2 {[%clk 0:00:15]} 69. Bxh2 {[%clk 0:00:08]}  Kxd4 {[%clk 0:00:15]} 70. Rf2 {[%clk 0:00:07]}  Be4 {[%clk 0:00:15]} 71. Bg1 {[%clk 0:00:07]}  Kd3 {[%clk 0:00:15]} 72. Ke5 {[%clk 0:00:08]}  Kc3 {[%clk 0:00:12]} 73. Rf4 {[%clk 0:00:08]}  Kd3 {[%clk 0:00:12]} 74. Bd4 {[%clk 0:00:07]}  Bg2 {[%clk 0:00:11]} 75. Rf8 {[%clk 0:00:08]}  Be4 {[%clk 0:00:10]} 76. Rd8 {[%clk 0:00:09]}  Bg2 {[%clk 0:00:10]} 77. Rb8 {[%clk 0:00:10]}  Be4 {[%clk 0:00:10]} 78. Rb6 {[%clk 0:00:11]}  Bg2 {[%clk 0:00:09]} 79. Rb2 {[%clk 0:00:12]}  Be4 {[%clk 0:00:08]} 80. Rb3+ {[%clk 0:00:12]}  Kc4 {[%clk 0:00:08]} 81. Re3 {[%clk 0:00:13]}  Bg2 {[%clk 0:00:07]} 82. Rc3+ {[%clk 0:00:14]}  Kb4 {[%clk 0:00:06]} 83. Rg3 {[%clk 0:00:15]}  Be4 {[%clk 0:00:06]} 84. Rc3 {[%clk 0:00:16]}  Bg2 {[%clk 0:00:05]} 85. Rc5 {[%clk 0:00:17]}  Bf3 {[%clk 0:00:04]} 86. Rc7 {[%clk 0:00:17]}  Be4 {[%clk 0:00:03]} 87. Kf4 {[%clk 0:00:18]}  Bg2 {[%clk 0:00:02]} 88. Ke3 {[%clk 0:00:19]}  Be4 {[%clk 0:00:02]} 89. Kd2 {[%clk 0:00:20]}  Kb5 {[%clk 0:00:01]} 90. Kc3 {[%clk 0:00:19]}  Bf3 {[%clk 0:00:01]} 91. Rc5+ {[%clk 0:00:20]}  Ka6 {[%clk 0:00:01]} 92. Be3 {[%clk 0:00:19]} 1-0


[Site "https://www.chess.com"]

[Event "Titled Tuesday Blitz June 6 Late 2023"]
[White "Torres Dominguez, David"]
[Black "Shapiro, Daniel"]
[WhiteFideId "2220857"]
[BlackFideId "2001780"]
[WhiteElo "1999"]
[BlackElo "2342"]
[Result "0-1"]
[Round "11"]
[TimeControl "180+2"]
[Date "2023.06.07"]
[WhiteClock "0:00:34"]
[BlackClock "0:00:19"]
[Board "93"]

1. e4 {[%clk 0:02:59]}  c5 {[%clk 0:02:02]} 2. Nc3 {[%clk 0:02:55]}  a6 {[%clk 0:02:00]} 3. f4 {[%clk 0:02:52]}  b5 {[%clk 0:01:58]} 4. Nf3 {[%clk 0:02:52]}  Bb7 {[%clk 0:01:57]} 5. d3 {[%clk 0:02:52]}  e6 {[%clk 0:01:57]} 6. Be2 {[%clk 0:02:50]}  Ne7 {[%clk 0:01:50]} 7. O-O {[%clk 0:02:50]}  g6 {[%clk 0:01:48]} 8. Qe1 {[%clk 0:02:51]}  Bg7 {[%clk 0:01:48]} 9. e5 {[%clk 0:02:46]}  d5 {[%clk 0:01:41]} 10. exd6 {[%clk 0:02:43]}  Qxd6 {[%clk 0:01:40]} 11. Ne4 {[%clk 0:02:44]}  Qc7 {[%clk 0:01:40]} 12. Be3 {[%clk 0:02:33]}  Nd7 {[%clk 0:01:37]} 13. c3 {[%clk 0:02:29]}  O-O {[%clk 0:01:35]} 14. Kh1 {[%clk 0:02:25]}  Nd5 {[%clk 0:01:32]} 15. Bd2 {[%clk 0:02:23]}  Nxf4 {[%clk 0:01:27]} 16. Nfg5 {[%clk 0:02:13]}  Nxe2 {[%clk 0:01:15]} 17. Qxe2 {[%clk 0:02:14]}  h6 {[%clk 0:01:09]} 18. Nh3 {[%clk 0:02:04]}  f5 {[%clk 0:01:08]} 19. Ng3 {[%clk 0:01:56]}  e5 {[%clk 0:01:08]} 20. Rae1 {[%clk 0:01:49]}  Rae8 {[%clk 0:01:08]} 21. Bc1 {[%clk 0:01:48]}  c4 {[%clk 0:01:08]} 22. dxc4 {[%clk 0:01:45]}  Qxc4 {[%clk 0:01:08]} 23. Qf2 {[%clk 0:01:17]}  Qxa2 {[%clk 0:01:04]} 24. Qa7 {[%clk 0:01:15]}  Qd5 {[%clk 0:01:03]} 25. Qf2 {[%clk 0:01:05]}  Nf6 {[%clk 0:00:57]} 26. Rd1 {[%clk 0:01:05]}  Qc6 {[%clk 0:00:54]} 27. Rd2 {[%clk 0:01:03]}  Ng4 {[%clk 0:00:48]} 28. Qe2 {[%clk 0:00:57]}  Kh7 {[%clk 0:00:35]} 29. Rfd1 {[%clk 0:00:55]}  Re6 {[%clk 0:00:27]} 30. Rd7 {[%clk 0:00:46]}  e4 {[%clk 0:00:25]} 31. Nf4 {[%clk 0:00:41]}  e3 {[%clk 0:00:20]} 32. Nxe6 {[%clk 0:00:38]}  Nf2+ {[%clk 0:00:20]} 33. Kg1 {[%clk 0:00:34]}  Qxg2# {[%clk 0:00:19]} 0-1


[Site "https://www.chess.com"]